[Event "44th Chess Olympiad Open 2022"]
[Site "Chennai"]
[Date "2022.08.07"]
[Round "9.54"]
[White "Egilstoft, Rogvi"]
[Black "Salim Mohammed, Salim Al Amri"]
[Result "1-0"]
[WhiteElo "2284"]
[BlackElo "1917"]
[Annotator "RC"]
[PlyCount "71"]
[EventDate "2022.??.??"]
[TimeControl "60"]

1. e4 {[%emt 0:00:04]} c5 {[%emt 0:00:09]} 2. c3 {[%emt 0:00:14]} Nf6 {[%emt 0:
00:00]} 3. e5 {[%emt 0:00:11]} Nd5 {[%emt 0:00:47]} 4. d4 {[%emt 0:00:22]} cxd4
{[%emt 0:00:40]} 5. cxd4 {[%emt 0:01:17]} d6 {[%emt 0:01:24]} 6. Nf3 {[%emt 0:
00:00]} Nc6 {[%emt 0:02:12]} 7. Bc4 {[%emt 0:00:16]} Nb6 {[%emt 0:11:47]} 8.
Bb5 {[%emt 0:00:08]} dxe5 {[%emt 0:01:02]} 9. Nxe5 {[%emt 0:00:16]} Bd7 {
[%emt 0:00:04]} 10. Nxd7 {[%emt 0:00:36]} Qxd7 {[%emt 0:00:02]} 11. O-O {
[%emt 0:01:59]} e6 {[%emt 0:00:32]} 12. Nc3 {[%emt 0:06:47]} Be7 {[%emt 0:00:
00]} 13. Qg4 {[%emt 0:01:43]} Bf6 {[%emt 0:03:17]} 14. Rd1 {[%emt 0:07:14]} h5
{[%emt 0:01:25]} 15. Qf3 {[%emt 0:03:21]} Rd8 {[%emt 0:03:16]} 16. Be3 {
[%emt 0:08:33]} Nd5 {[%emt 0:05:54]} 17. Rac1 {[%emt 0:06:09]} Kf8 {[%emt 0:00:
00]} 18. Ne4 {[%emt 0:04:24]} Be7 {[%emt 0:00:06]} 19. Qe2 {[%emt 0:22:06]} f5
{[%emt 0:11:12]} 20. Nc5 {[%emt 0:07:24]} Bxc5 {[%emt 0:00:40]} 21. dxc5 {
[%emt 0:01:12]} f4 {[%emt 0:08:59]} 22. Bxf4 {[%emt 0:10:08]} Kg8 {[%emt 0:00:
00]} 23. Bd6 {[%emt 0:03:53]} Rh6 {[%emt 0:00:20]} 24. Bc4 {[%emt 0:00:44]} Qf7
{[%emt 0:00:44]} 25. Qe4 {[%emt 0:00:58]} Re8 {[%emt 0:03:49]} 26. Re1 {
[%emt 0:04:23]} Nce7 {[%emt 0:00:57]} 27. Bxe7 {[%emt 0:01:21]} Qxe7 {[%emt 0:
00:00]} 28. Bxd5 {[%emt 0:00:17]} Qg5 {[%emt 0:00:40]} 29. Bxb7 {[%emt 0:01:16]
} Rf6 {[%emt 0:00:46]} 30. c6 {[%emt 0:01:37]} Rf4 {[%emt 0:00:02]} 31. Qe3 {
[%emt 0:00:22]} e5 {[%emt 0:05:48]} 32. c7 {[%emt 0:00:27]} Kh7 {[%emt 0:00:27]
} 33. Be4+ {[%emt 0:00:19]} g6 {[%emt 0:00:22]} 34. c8=Q {[%emt 0:00:49]} Rxc8
{[%emt 0:00:02]} 35. Rxc8 {[%emt 0:00:30]} h4 {[%emt 0:00:17]} 36. Qxa7+ {
[%emt 0:00:09]} 1-0

[Event "44th Chess Olympiad Open 2022"]
[Site "Chennai"]
[Date "2022.08.07"]
[Round "9.54"]
[White "Al Maashani, Amer"]
[Black "Ziska, Helgi Dam"]
[Result "1/2-1/2"]
[WhiteElo "1947"]
[BlackElo "2549"]
[Annotator "TA"]
[PlyCount "101"]
[EventDate "2022.??.??"]
[TimeControl "60"]

{[%evp 9,101,44,42,47,45,42,49,45,63,48,50,31,69,68,56,52,42,24,35,0,0,0,0,-50,
-66,-55,-8,-18,-14,-31,-29,-187,-183,-200,-194,-206,-154,-161,-158,-150,-155,
-142,-150,-214,-204,-252,-237,-267,-219,-215,-215,-206,-231,-312,-285,-298,
-292,-396,-398,-344,-211,-216,0,0,69,-1857,-1720,-1592,-1722,-1551,-1156,-1279,
0,0,0,0,0,0,0,0,0,0,0,0,0,0,0,0,0,0,0,0,0,0]} 1. d4 {[%emt 0:00:04]} Nf6 {
[%emt 0:00:20]} 2. c4 {[%emt 0:00:07]} g6 {[%emt 0:00:18]} 3. Nc3 {[%emt 0:00:
00]} Bg7 {[%emt 0:00:13]} 4. e4 {[%emt 0:00:07]} d6 {[%emt 0:00:12]} 5. h3 {
[%emt 0:00:34]} Nbd7 {[%emt 0:04:53]} 6. Be3 {[%emt 0:00:58] E71: King's
Indian: 4 e4 d6 5 h3.} e5 {[%emt 0:01:06]} 7. d5 {[%emt 0:00:58]} Nc5 {[%emt 0:
00:00]} 8. Qc2 {[%emt 0:03:43] White is slightly better.} a5 {[%emt 0:00:13]}
9. Nf3 {[%emt 0:01:28]} O-O {[%emt 0:09:45]} 10. g4 $1 {[%emt 0:06:37][%cal
Yg2g4,Yg4g5] now scores much better than the old 10.Be2.} (10. Bxc5 dxc5 11.
Bd3 Bd7 $11) 10... h5 {[%emt 0:11:29]} 11. g5 $1 {[%emt 0:12:17]} Nfd7 {
[%emt 0:01:42]} 12. Be2 {[%emt 0:01:04]} c6 {[%emt 0:01:00]} 13. O-O-O {
[%emt 0:03:21]} a4 {[%emt 0:01:17] [#]} 14. dxc6 $146 {[%emt 0:02:18]} ({
Predecessor:} 14. Kb1 Qa5 15. Nh4 Nb6 16. Rhg1 Bd7 17. Nf5 gxf5 18. exf5 a3 19.
Bxc5 dxc5 20. f6 axb2 {½-½ (31) Suleymenov,A (2440)-Fedorov,A (2529)
Cheliabinsk 2021}) 14... bxc6 {[%emt 0:00:09]} 15. Rxd6 {[%emt 0:01:18]} Qc7 $1
{[%emt 0:00:57]} 16. Rhd1 {[%emt 0:04:40]} ({White should try} 16. Rxd7 $11
Nxd7 17. Nxa4) 16... Re8 $15 {[%emt 0:02:41]} 17. Nh4 {[%emt 0:06:37][%cal
Yh4g6]} Ne6 {[%emt 0:04:06]} (17... Bf8 $15 {is more appropriate.} 18. R6d2 Ne6
) 18. Rxe6 $1 $11 {[%emt 0:10:50]} Rxe6 {[%emt 0:00:49]} 19. c5 {[%emt 0:00:19]
[%cal Yh4f5]} a3 {[%emt 0:01:43][%cal Ya4a3,Ya3b2] Strongly threatening ...
axb2+.} 20. Bc4 $2 {[%emt 0:04:15]} (20. b4 $11 {and White is okay.}) 20...
axb2+ $19 {[%emt 0:00:11]} 21. Kb1 {[%emt 0:00:14] [#]} Nf8 {[%emt 0:00:58]
[%cal Yc7a5]} 22. Nf5 {[%emt 0:01:31]} Re8 {[%emt 0:04:47]} 23. Nd6 {[%emt 0:
05:14]} Re7 {[%emt 0:02:53]} 24. Na4 {[%emt 0:05:44]} Bxh3 {[%emt 0:08:39]} 25.
Nb6 {[%emt 0:00:33]} Rb8 {[%emt 0:04:45]} 26. Qb3 {[%emt 0:00:00]} (26. a4 $17)
26... Bg4 {[%emt 0:03:24]} 27. f3 {[%emt 0:00:48]} Be6 {[%emt 0:00:32]} (27...
Bxf3 $2 28. Rf1 Bg4 29. Bxf7+ Kh8 30. Bc4 $19) 28. a4 {[%emt 0:03:02]} Bxc4 {
[%emt 0:03:54]} 29. Qxc4 {[%emt 0:00:14]} Ne6 {[%emt 0:00:00]} 30. a5 {[%emt 0:
00:31]} Bf8 {[%emt 0:03:46]} (30... Qa7 31. Ndc8 Qc7 32. Nxe7+ Qxe7 33. Rd7 $16
) 31. Bf2 {[%emt 0:06:33]} Qa7 {[%emt 0:05:19]} (31... Nxg5 $2 32. Bh4 Bh6 33.
Bxg5 Bxg5 34. Nxf7 $19) 32. a6 {[%emt 0:04:26]} Rc7 {[%emt 0:02:47] Prevents
Ndc8.} (32... Nxg5 33. Ndc8 Qc7 34. Nxe7+ Qxe7 35. Rd7 $18) 33. Rd2 {[%emt 0:
04:06]} h4 {[%emt 0:02:31][%cal Yh5h4,Yh4h3]} 34. Be3 {[%emt 0:01:08]} h3 {
[%emt 0:00:47] Threatens to win with ...Bxd6.} (34... Bxd6 $2 35. Rxd6 Kg7 36.
Rd2) 35. Rh2 {[%emt 0:05:22]} Nxc5 $2 {[%emt 0:00:00]} 36. Bxc5 $11 {[%emt 0:
01:40] Chess con chili.} Bxd6 {[%emt 0:01:13] [#]} (36... Rxb6 $11 37. Ne8 Be7
38. Bxe7 (38. Bxb6 $2 Qxb6 39. Rxb2 Qg1+ 40. Qc1 Qxc1+ 41. Kxc1 Ba3 $19) 38...
Rxe7 39. Nf6+ Kf8 40. Rxh3 Rb8 41. Rh8+ Kg7 42. Rh7+ Kf8 43. Rh8+ Kg7 44. Rh7+
Kf8 45. Rh8+) 37. Nd7 $2 {[%emt 0:02:00] White is more active.} (37. Qf1 $1 $14
f5 (37... Qxa6 38. Qxa6) 38. Bxd6 Qxb6 39. Bxc7 Qxc7 40. Qxh3) 37... Bxc5 $19 {
[%emt 0:01:28]} 38. Nf6+ {[%emt 0:00:00]} Kf8 {[%emt 0:00:38]} 39. Rxh3 {
[%emt 0:00:17]} Ba3 {[%emt 0:01:05]} 40. Rh1 {[%emt 0:01:02] Inhibits Qg1+.}
Qe3 $2 {[%emt 0:01:06]} (40... Ke7 $19 41. Rd1 Qb6) 41. Rh8+ $11 {[%emt 0:30:
29] The position is equal.} Kg7 {[%emt 0:00:00]} 42. Rh7+ {[%emt 0:00:00]} Kf8
{[%emt 0:00:00]} 43. Rh8+ {[%emt 0:00:00]} Ke7 {[%emt 0:00:00]} 44. Nd5+ $1 {
[%emt 0:00:00]} cxd5 {[%emt 0:00:00]} (44... Kd6 $2 45. Nxe3 Rxh8 46. Qd3+ Kc5
47. Qxa3+ Kb5 48. Kxb2 $18) 45. Qxc7+ {[%emt 0:00:00]} Ke6 {[%emt 0:00:00]} 46.
Qc6+ {[%emt 0:00:00]} Bd6 {[%emt 0:00:00]} 47. Re8+ {[%emt 0:00:00]} (47. Rxb8
Qc1+ 48. Qxc1 bxc1=Q+ 49. Kxc1 Bxb8 $19) 47... Rxe8 {[%emt 0:00:00]} 48. Qxe8+
{[%emt 0:00:00]} Be7 {[%emt 0:00:00]} 49. Qc6+ {[%emt 0:00:00]} Bd6 {[%emt 0:
00:00] aiming for ...Qc1+.} 50. Qe8+ {[%emt 0:00:00]} Be7 {[%emt 0:00:00] ( ->
...Qc1+)} 51. Qc6+ {[%emt 0:00:00] Weighted Error Value: White=0.33/Black=0.34}
1/2-1/2

[Event "44th Chess Olympiad Open 2022"]
[Site "Chennai"]
[Date "2022.08.07"]
[Round "9.54"]
[White "Salim Issa, Ali Shamas"]
[Black "Rodgaard, John"]
[Result "1/2-1/2"]
[WhiteElo "1851"]
[BlackElo "2324"]
[Annotator "RC"]
[PlyCount "76"]
[EventDate "2022.??.??"]
[TimeControl "60"]

1. d4 {[%emt 0:00:07]} d5 {[%emt 0:00:21]} 2. c4 {[%emt 0:00:17]} e6 {[%emt 0:
00:00]} 3. Nc3 {[%emt 0:00:32]} c6 {[%emt 0:01:04]} 4. e3 {[%emt 0:00:31]} Nf6
{[%emt 0:01:02]} 5. Bd3 {[%emt 0:00:17]} Nbd7 {[%emt 0:01:19]} 6. cxd5 {
[%emt 0:00:57]} exd5 {[%emt 0:03:31]} 7. Nge2 {[%emt 0:00:28]} Bd6 {[%emt 0:00:
00]} 8. h3 {[%emt 0:00:38]} O-O {[%emt 0:10:13]} 9. O-O {[%emt 0:00:32]} Re8 {
[%emt 0:01:04]} 10. Qc2 {[%emt 0:00:26]} Nf8 {[%emt 0:09:28]} 11. f3 {[%emt 0:
00:00]} Bc7 {[%emt 0:22:05]} 12. Bd2 {[%emt 0:05:20]} Qd6 {[%emt 0:07:18]} 13.
Kf2 {[%emt 0:02:12]} Bd7 {[%emt 0:09:48]} 14. Rac1 {[%emt 0:03:03]} Rac8 {
[%emt 0:03:01]} 15. b4 {[%emt 0:02:01]} b5 {[%emt 0:03:21]} 16. a3 {[%emt 0:00:
00]} Bb6 {[%emt 0:00:58]} 17. Qb1 {[%emt 0:00:46]} g6 {[%emt 0:02:42]} 18. Rh1
{[%emt 0:00:19]} h5 {[%emt 0:03:11]} 19. Rcg1 {[%emt 0:02:27]} Ne6 {[%emt 0:00:
00]} 20. g4 {[%emt 0:04:41]} Ng7 {[%emt 0:00:26]} 21. Nf4 {[%emt 0:01:19]} h4 {
[%emt 0:03:10]} 22. Nfe2 {[%emt 0:12:02]} Qe7 {[%emt 0:00:45]} 23. Nc1 {
[%emt 0:01:31]} a5 {[%emt 0:00:51]} 24. N3e2 {[%emt 0:00:37]} axb4 {[%emt 0:00:
00]} 25. axb4 {[%emt 0:00:16]} Ra8 {[%emt 0:00:33]} 26. Qb2 {[%emt 0:00:43]}
Nh7 {[%emt 0:01:35]} 27. Nb3 {[%emt 0:03:26]} Ng5 {[%emt 0:01:02]} 28. Kg2 {
[%emt 0:00:46]} N7e6 {[%emt 0:00:36]} 29. f4 {[%emt 0:01:47]} Ne4 {[%emt 0:00:
00]} 30. Bxe4 {[%emt 0:07:44]} dxe4 {[%emt 0:00:03]} 31. Ra1 {[%emt 0:00:44]}
Nc7 {[%emt 0:00:39]} 32. Nc5 {[%emt 0:00:57]} Be6 {[%emt 0:01:04]} 33. Rxa8 {
[%emt 0:01:37]} Rxa8 {[%emt 0:00:27]} 34. Ra1 {[%emt 0:00:07]} Rxa1 {[%emt 0:
00:00]} 35. Qxa1 {[%emt 0:00:10]} Bc4 {[%emt 0:01:09]} 36. Nc3 {[%emt 0:00:32]}
Bxc5 {[%emt 0:00:44]} 37. bxc5 {[%emt 0:01:02]} Qe6 {[%emt 0:01:24]} 38. Qa7 {
[%emt 0:00:29]} Nd5 {[%emt 0:00:58]} 1/2-1/2

[Event "44th Chess Olympiad Open 2022"]
[Site "Chennai"]
[Date "2022.08.07"]
[Round "9.55"]
[White "Kigigha, Bomo"]
[Black "Jelic, Dejan"]
[Result "0-1"]
[WhiteElo "2251"]
[BlackElo "1905"]
[Annotator "RC"]
[PlyCount "86"]
[EventDate "2022.??.??"]
[TimeControl "60"]

1. c4 {[%emt 0:00:05]} e6 {[%emt 0:00:49]} 2. Nf3 {[%emt 0:00:21]} b6 {[%emt 0:
00:00]} 3. g3 {[%emt 0:00:09]} Bb7 {[%emt 0:00:15]} 4. Bg2 {[%emt 0:00:05]} Be7
{[%emt 0:01:46]} 5. Nc3 {[%emt 0:01:22]} f5 {[%emt 0:00:58]} 6. d4 {[%emt 0:00:
00]} Nf6 {[%emt 0:03:07]} 7. O-O {[%emt 0:00:18]} O-O {[%emt 0:00:33]} 8. Qc2 {
[%emt 0:05:36]} c5 {[%emt 0:05:37]} 9. d5 {[%emt 0:02:30]} exd5 {[%emt 0:01:03]
} 10. Nd2 {[%emt 0:00:29]} Nc6 {[%emt 0:02:24]} 11. cxd5 {[%emt 0:03:59]} Nb4 {
[%emt 0:07:20]} 12. Qb3 {[%emt 0:02:10]} d6 {[%emt 0:02:20]} 13. Nc4 {[%emt 0:
00:00]} a5 {[%emt 0:02:06]} 14. a3 {[%emt 0:05:12]} a4 {[%emt 0:02:19]} 15. Qd1
{[%emt 0:01:14]} Na6 {[%emt 0:07:29]} 16. Qxa4 {[%emt 0:02:26]} Nc7 {[%emt 0:
00:00]} 17. Qb3 {[%emt 0:02:01]} b5 {[%emt 0:01:40]} 18. Nxb5 {[%emt 0:02:00]}
Nxb5 {[%emt 0:00:49]} 19. Qxb5 {[%emt 0:00:07]} Ba6 {[%emt 0:02:30]} 20. Qb3 {
[%emt 0:00:42]} Ne4 {[%emt 0:01:12]} 21. Qc2 {[%emt 0:04:05]} Qe8 {[%emt 0:00:
00]} 22. f3 {[%emt 0:18:11]} Nf6 {[%emt 0:01:30]} 23. e4 {[%emt 0:13:10]} fxe4
{[%emt 0:02:52]} 24. fxe4 {[%emt 0:00:08]} Ng4 {[%emt 0:00:17]} 25. Rf4 {
[%emt 0:09:43]} Rxf4 {[%emt 0:04:28]} 26. Bxf4 {[%emt 0:05:55]} Bf6 {[%emt 0:
00:00]} 27. Bf3 {[%emt 0:09:10]} Bd4+ {[%emt 0:09:12]} 28. Kg2 {[%emt 0:02:43]}
Bxc4 {[%emt 0:05:43]} 29. Bxg4 {[%emt 0:00:07]} Qb5 {[%emt 0:01:41]} 30. a4 {
[%emt 0:01:32]} Qa6 {[%emt 0:01:20]} 31. Be6+ {[%emt 0:01:13]} Kh8 {[%emt 0:00:
00]} 32. Ra3 {[%emt 0:00:22]} Rb8 {[%emt 0:01:42]} 33. Rc3 {[%emt 0:00:05]}
Bf1+ {[%emt 0:00:22]} 34. Kf3 {[%emt 0:00:48]} Bxc3 {[%emt 0:03:11]} 35. bxc3 {
[%emt 0:00:06]} Rb1 {[%emt 0:01:16]} 36. Bxd6 {[%emt 0:01:39]} Bd3 {[%emt 0:00:
00]} 37. Qd2 {[%emt 0:01:30]} Rf1+ {[%emt 0:00:19]} 38. Ke3 {[%emt 0:01:04]} c4
{[%emt 0:01:39]} 39. Bc5 {[%emt 0:00:32]} Qxa4 {[%emt 0:01:45]} 40. Bf5 {
[%emt 0:00:48]} Qe8 {[%emt 0:02:43]} 41. Be6 {[%emt 0:31:38]} Qg6 {[%emt 0:00:
00]} 42. Qg2 {[%emt 0:00:00]} Qg5+ {[%emt 0:00:00]} 43. Kd4 {[%emt 0:00:00]}
Rd1 {[%emt 0:00:00]} 0-1

[Event "44th Chess Olympiad Open 2022"]
[Site "Chennai"]
[Date "2022.08.07"]
[Round "9.55"]
[White "Okeke Issac"]
[Black "Mannhart, Marcel"]
[Result "1-0"]
[WhiteElo "2204"]
[BlackElo "2110"]
[Annotator "RC"]
[PlyCount "93"]
[EventDate "2022.??.??"]
[TimeControl "60"]

1. e4 {[%emt 0:00:10]} c5 {[%emt 0:00:22]} 2. Nf3 {[%emt 0:00:09]} g6 {[%emt 0:
00:00]} 3. d4 {[%emt 0:01:59]} cxd4 {[%emt 0:00:20]} 4. Qxd4 {[%emt 0:00:17]}
Nf6 {[%emt 0:00:41]} 5. c4 {[%emt 0:01:40]} Nc6 {[%emt 0:00:56]} 6. Qe3 {
[%emt 0:00:17]} Bg7 {[%emt 0:00:53]} 7. h3 {[%emt 0:01:47]} d6 {[%emt 0:01:33]}
8. Be2 {[%emt 0:00:33]} O-O {[%emt 0:01:58]} 9. O-O {[%emt 0:00:19]} Nd7 {
[%emt 0:02:25]} 10. Nc3 {[%emt 0:02:03]} e5 {[%emt 0:02:22]} 11. Nb5 {[%emt 0:
00:00]} Nc5 {[%emt 0:02:15]} 12. Rd1 {[%emt 0:01:36]} Nd4 {[%emt 0:02:38]} 13.
Nfxd4 {[%emt 0:04:08]} exd4 {[%emt 0:00:59]} 14. Nxd4 {[%emt 0:01:44]} Re8 {
[%emt 0:00:44]} 15. Bf3 {[%emt 0:02:29]} f5 {[%emt 0:01:06]} 16. Nb5 {[%emt 0:
00:00]} Nxe4 {[%emt 0:04:46]} 17. Nxd6 {[%emt 0:08:24]} Qxd6 {[%emt 0:28:58]}
18. Rxd6 {[%emt 0:00:28]} Nxd6 {[%emt 0:00:05]} 19. Bd5+ {[%emt 0:03:06]} Kh8 {
[%emt 0:01:03]} 20. Qg5 {[%emt 0:11:00]} Be6 {[%emt 0:02:03]} 21. Bf4 {[%emt 0:
00:00]} Bxd5 {[%emt 0:03:31]} 22. Bxd6 {[%emt 0:00:08]} Bxc4 {[%emt 0:00:22]}
23. Be7 {[%emt 0:09:02]} Bxb2 {[%emt 0:05:45]} 24. Rb1 {[%emt 0:00:24]} Bg7 {
[%emt 0:01:07]} 25. Rxb7 {[%emt 0:01:16]} Reb8 {[%emt 0:01:05]} 26. Rd7 {
[%emt 0:09:50]} Be6 {[%emt 0:02:01]} 27. Rd2 {[%emt 0:01:10]} Rb7 {[%emt 0:00:
00]} 28. Bf6 {[%emt 0:01:11]} Rf8 {[%emt 0:01:00]} 29. Bxg7+ {[%emt 0:00:27]}
Kxg7 {[%emt 0:00:07]} 30. h4 {[%emt 0:00:50]} h5 {[%emt 0:05:17]} 31. Rd6 {
[%emt 0:01:43]} Bf7 {[%emt 0:00:57]} 32. Qf6+ {[%emt 0:02:14]} Kh7 {[%emt 0:00:
00]} 33. Kh2 {[%emt 0:00:36]} Rg8 {[%emt 0:01:37]} 34. a4 {[%emt 0:01:24]} Rg7
{[%emt 0:00:43]} 35. Qd4 {[%emt 0:01:01]} Bg8 {[%emt 0:00:28]} 36. a5 {[%emt 0:
00:00]} Rbc7 {[%emt 0:00:27]} 37. a6 {[%emt 0:01:36]} Rc4 {[%emt 0:01:14]} 38.
Qf6 {[%emt 0:00:01]} Rcc7 {[%emt 0:01:12]} 39. f3 {[%emt 0:01:44]} Rcf7 {
[%emt 0:00:28]} 40. Qg5 {[%emt 0:00:35]} f4 {[%emt 0:09:36]} 41. Qc5 {[%emt 0:
00:00]} Rf5 {[%emt 0:34:51]} 42. Qc8 {[%emt 0:01:07]} Rff7 {[%emt 0:00:36]} 43.
Qb8 {[%emt 0:03:06]} Rf5 {[%emt 0:02:13]} 44. Rd4 {[%emt 0:03:51]} Rf6 {
[%emt 0:02:13]} 45. Qb5 {[%emt 0:01:32]} Be6 {[%emt 0:00:00]} 46. Qe5 {[%emt 0:
00:00]} Rgf7 {[%emt 0:00:00]} 47. Rd6 {[%emt 0:00:00]} 1-0

[Event "44th Chess Olympiad Open 2022"]
[Site "Chennai"]
[Date "2022.08.07"]
[Round "9.55"]
[White "Schadler, Martin"]
[Black "Balogun, Oluwafemi"]
[Result "0-1"]
[WhiteElo "1939"]
[BlackElo "2274"]
[Annotator "NA RC"]
[PlyCount "68"]
[EventDate "2022.??.??"]
[TimeControl "60"]

1. d4 {[%emt 0:00:03]} Nf6 {[%emt 0:00:09]} 2. c4 {[%emt 0:00:07]} g6 {[%emt 0:
00:00]} 3. Nc3 {[%emt 0:00:07]} Bg7 {[%emt 0:00:06]} 4. e4 {[%emt 0:00:07]} d6
{[%emt 0:00:07]} 5. h3 {[%emt 0:00:17]} O-O {[%emt 0:00:20]} 6. Bg5 {[%emt 0:
00:00]} h6 {[%emt 0:00:20]} 7. Be3 {[%emt 0:00:08]} e5 {[%emt 0:00:54]} 8. d5 {
[%emt 0:00:20]} a5 {[%emt 0:03:44]} 9. a4 {[%emt 0:00:08]} Na6 {[%emt 0:00:54]}
10. Bd3 {[%emt 0:00:41]} Nb4 {[%emt 0:00:32]} 11. Nge2 {[%emt 0:02:46]} Nd7 {
[%emt 0:02:12]} 12. g4 {[%emt 0:00:35]} b6 {[%emt 0:02:01]} 13. Na2 {[%emt 0:
00:00]} Na6 {[%emt 0:08:29]} 14. Ng3 {[%emt 0:05:54]} Ndc5 {[%emt 0:00:20]} 15.
Bc2 {[%emt 0:00:38]} Qh4 {[%emt 0:04:26]} 16. Qf3 {[%emt 0:02:19]} Bd7 {
[%emt 0:01:43]} 17. b3 {[%emt 0:05:43]} f5 {[%emt 0:06:22]} 18. gxf5 {[%emt 0:
00:00]} Bxf5 {[%emt 0:00:17]} 19. exf5 {[%emt 0:00:45]} e4 {[%emt 0:00:12]} 20.
Qg4 {[%emt 0:00:22]} Qxg4 {[%emt 0:01:32]} 21. hxg4 {[%emt 0:00:05]} Bxa1 {
[%emt 0:00:32]} 22. Rxh6 {[%emt 0:00:36]} gxf5 {[%emt 0:03:02]} 23. Nxf5 {
[%emt 0:01:24]} Rae8 {[%emt 0:02:23]} 24. Kd2 {[%emt 0:04:38]} Be5 {[%emt 0:00:
00]} 25. f4 {[%emt 0:10:50]} exf3 {[%emt 0:02:13]} 26. Rg6+ {[%emt 0:00:56]}
Kf7 {[%emt 0:01:05]} 27. Nh6+ {[%emt 0:01:33]} Ke7 {[%emt 0:00:25]} 28. Bg5+ {
[%emt 0:04:45]} Kd7 {[%emt 0:09:41]} 29. Bf5+ {[%emt 0:06:12]} Rxf5 {[%emt 0:
00:00]} 30. Nxf5 {[%emt 0:00:09]} f2 {[%emt 0:00:43]} 31. Ne3 {[%emt 0:14:48]}
Ne4+ {[%emt 0:00:40]} 32. Ke2 {[%emt 0:00:46]} Nxg5 {[%emt 0:00:21]} 33. Rxg5 {
[%emt 0:00:33]} Bd4 {[%emt 0:00:41]} 34. Rf5 {[%emt 0:00:25]} Bxe3 {[%emt 0:00:
00]} 0-1

[Event "44th Chess Olympiad Open 2022"]
[Site "Chennai"]
[Date "2022.08.07"]
[Round "9.55"]
[White "Frick, Renato"]
[Black "Adebayo, Adegboyega"]
[Result "1/2-1/2"]
[WhiteElo "1900"]
[BlackElo "2313"]
[Annotator "RC"]
[PlyCount "91"]
[EventDate "2022.??.??"]
[TimeControl "60"]

1. e4 {[%emt 0:00:03]} e5 {[%emt 0:00:45]} 2. Nf3 {[%emt 0:00:12]} Nc6 {
[%emt 0:00:06]} 3. Bb5 {[%emt 0:00:10]} Bc5 {[%emt 0:00:36]} 4. c3 {[%emt 0:00:
00]} Nge7 {[%emt 0:00:23]} 5. O-O {[%emt 0:00:24]} Ng6 {[%emt 0:00:09]} 6. d4 {
[%emt 0:00:41]} exd4 {[%emt 0:00:07]} 7. cxd4 {[%emt 0:00:11]} Bb6 {[%emt 0:00:
00]} 8. Nc3 {[%emt 0:00:35]} Nce7 {[%emt 0:00:20]} 9. h4 {[%emt 0:10:12]} c6 {
[%emt 0:00:33]} 10. Bd3 {[%emt 0:00:38]} d5 {[%emt 0:09:27]} 11. h5 {[%emt 0:
00:00]} Nf8 {[%emt 0:00:38]} 12. exd5 {[%emt 0:05:23]} cxd5 {[%emt 0:11:24]}
13. Re1 {[%emt 0:08:39]} Ne6 {[%emt 0:06:26]} 14. Bb5+ {[%emt 0:09:07]} Kf8 {
[%emt 0:04:22]} 15. Qd3 {[%emt 0:12:57]} f6 {[%emt 0:05:56]} 16. Bd2 {[%emt 0:
00:00]} Kf7 {[%emt 0:03:19]} 17. Re2 {[%emt 0:05:12]} Qd6 {[%emt 0:08:11]} 18.
Rae1 {[%emt 0:02:07]} Bd8 {[%emt 0:01:33]} 19. Ba4 {[%emt 0:05:25]} a6 {
[%emt 0:02:55]} 20. Bb3 {[%emt 0:03:46]} g6 {[%emt 0:07:21]} 21. Ne4 {[%emt 0:
00:00]} dxe4 {[%emt 0:15:19]} 22. Qxe4 {[%emt 0:00:09]} Re8 {[%emt 0:02:13]}
23. Bxe6+ {[%emt 0:07:57]} Bxe6 {[%emt 0:00:07]} 24. Qxe6+ {[%emt 0:00:28]}
Qxe6 {[%emt 0:00:09]} 25. Rxe6 {[%emt 0:00:05]} Bc7 {[%emt 0:00:16]} 26. hxg6+
{[%emt 0:04:47]} hxg6 {[%emt 0:00:06]} 27. Kf1 {[%emt 0:02:34]} Nd5 {[%emt 0:
00:00]} 28. Rxe8 {[%emt 0:00:55]} Rxe8 {[%emt 0:00:04]} 29. Rxe8 {[%emt 0:00:
00]} Kxe8 {[%emt 0:00:05]} 30. Ke2 {[%emt 0:00:20]} Kf7 {[%emt 0:00:10]} 31.
Kd3 {[%emt 0:00:28]} Ke6 {[%emt 0:00:07]} 32. Ne1 {[%emt 0:03:52]} b5 {[%emt 0:
00:00]} 33. Nc2 {[%emt 0:04:27]} Bd6 {[%emt 0:00:43]} 34. g3 {[%emt 0:00:58]}
f5 {[%emt 0:00:37]} 35. a3 {[%emt 0:01:16]} Bc7 {[%emt 0:00:59]} 36. b3 {
[%emt 0:01:37]} Bd6 {[%emt 0:00:34]} 37. a4 {[%emt 0:01:14]} Kd7 {[%emt 0:00:
00]} 38. axb5 {[%emt 0:00:37]} axb5 {[%emt 0:00:05]} 39. Ne3 {[%emt 0:00:57]}
Nxe3 {[%emt 0:01:48]} 40. Bxe3 {[%emt 0:00:24]} Ke6 {[%emt 0:00:10]} 41. Bg5 {
[%emt 0:07:53]} Kd5 {[%emt 0:00:46]} 42. Bf4 {[%emt 0:06:20]} Be7 {[%emt 0:00:
00]} 43. Be3 {[%emt 0:04:00]} Bd6 {[%emt 0:00:34]} 44. Bf4 {[%emt 0:00:19]} Be7
{[%emt 0:00:10]} 45. Be3 {[%emt 0:00:12]} Bd6 {[%emt 0:00:53]} 46. Bf4 {
[%emt 0:00:07]} 1/2-1/2

[Event "44th Chess Olympiad Open 2022"]
[Site "Chennai"]
[Date "2022.08.07"]
[Round "9.56"]
[White "El Jawich, Amro"]
[Black "Ayyad, Husain"]
[Result "1-0"]
[WhiteElo "2314"]
[BlackElo "2209"]
[Annotator "RC"]
[PlyCount "55"]
[EventDate "2022.??.??"]
[TimeControl "60"]

1. e4 {[%emt 0:00:07]} e5 {[%emt 0:00:02]} 2. Nf3 {[%emt 0:00:07]} Nc6 {
[%emt 0:00:01]} 3. d4 {[%emt 0:00:23]} exd4 {[%emt 0:00:02]} 4. Nxd4 {[%emt 0:
00:00]} Bc5 {[%emt 0:00:09]} 5. Nb3 {[%emt 0:00:15]} Bb6 {[%emt 0:00:11]} 6.
Nc3 {[%emt 0:00:17]} d6 {[%emt 0:00:20]} 7. Qe2 {[%emt 0:00:34]} Be6 {[%emt 0:
00:00]} 8. Be3 {[%emt 0:03:03]} Nf6 {[%emt 0:04:33]} 9. O-O-O {[%emt 0:01:11]}
Ng4 {[%emt 0:02:42]} 10. Bxb6 {[%emt 0:05:01]} axb6 {[%emt 0:00:05]} 11. f4 {
[%emt 0:11:35]} Nh6 {[%emt 0:04:51]} 12. h3 {[%emt 0:04:29]} Qh4 {[%emt 0:00:
00]} 13. Nd5 {[%emt 0:15:18]} O-O {[%emt 0:11:57]} 14. Kb1 {[%emt 0:00:47]}
Bxd5 {[%emt 0:06:07]} 15. exd5 {[%emt 0:00:22]} Na5 {[%emt 0:00:07]} 16. g4 {
[%emt 0:17:52]} Nxb3 {[%emt 0:00:27]} 17. cxb3 {[%emt 0:00:42]} Rfe8 {[%emt 0:
00:00]} 18. Qf3 {[%emt 0:14:17]} Re1 {[%emt 0:00:13]} 19. Bd3 {[%emt 0:01:16]}
Rxh1 {[%emt 0:05:18]} 20. Rxh1 {[%emt 0:00:48]} Kf8 {[%emt 0:05:43]} 21. g5 {
[%emt 0:07:00]} Ng8 {[%emt 0:00:14]} 22. Bb5 {[%emt 0:03:21]} Ne7 {[%emt 0:00:
00]} 23. Qe4 {[%emt 0:01:03]} g6 {[%emt 0:04:50]} 24. Rc1 {[%emt 0:06:28]} c6 {
[%emt 0:03:52]} 25. dxc6 {[%emt 0:00:12]} bxc6 {[%emt 0:00:02]} 26. Bxc6 {
[%emt 0:04:10]} Rc8 {[%emt 0:00:10]} 27. Qd4 {[%emt 0:01:33]} Nxc6 {[%emt 0:00:
00]} 28. Qh8+ {[%emt 0:00:45]} 1-0